fUSD/lending_fUSD_20240328
["ID","MTS","AMOUNT","RATE_DAILY","PERIOD"]
[320835794,1711609832192,-368.44,0.00048539,120]
[320835796,1711609832201,-250.0,0.00048572,112]
[320835798,1711609832211,-250.0,0.00048617,120]
[320835800,1711609832219,-201.0,0.0004881,30]
[320835802,1711609832229,-595.2,0.00048832,2]
[320835804,1711609832238,-192.22165366,0.00048879,2]
[320835806,1711609832247,-36026.69246718,0.0004888,2]
[320835808,1711609832257,-930.00150782,0.00048898,2]
[320835810,1711609832266,-399.71,0.000489,2]
[320835812,1711609832275,-21647.77,0.00048903,2]
[320835814,1711609832284,-224.37,0.00049018,120]
[320835816,1711609832294,-277.83,0.00049082,2]
[320835818,1711609832303,-155.47,0.00049202,15]
[320835820,1711609832312,-345.0,0.00049315,30]
[320835822,1711609832321,-404.8,0.00049463,120]
[320835824,1711609832330,-210.0,0.0004982,30]
[320835826,1711609832341,-201.0,0.0004982,30]
[320835827,1711609832350,-500.0,0.0005,120]
[320835829,1711609832359,-409.43,0.00050758,30]
[320835831,1711609832369,-409.43,0.00050758,30]
[320835833,1711609832378,-409.43,0.00050758,30]
[320835834,1711609832387,-409.43,0.00050758,30]
[320835835,1711609832395,-210.0,0.0005084,30]
[320835836,1711609832405,-201.0,0.0005084,30]
[320835837,1711609832414,-166.33000666,0.00050956,60]
[320835838,1711609832423,-170.69831318,0.00051001,120]
[320835839,1711609832432,-1092.32843587,0.00051001,2]
[320835840,1711609832442,-7503.17365607,0.000511,2]
[320835841,1711609832452,-3378.34845342,0.00051101,2]
[320835842,1711609832463,-924.81,0.00051141,30]
[320835843,1711609832474,-924.81,0.00051141,30]
[320835844,1711609832483,-924.81,0.00051141,30]
[320835845,1711609832493,-409.43,0.00051141,30]
[320835846,1711609832502,-409.43,0.00051141,30]
[320835847,1711609832511,-924.81,0.00051141,30]
[320835848,1711609832522,-924.81,0.00051141,30]
[320835849,1711609832533,-409.43,0.00051141,30]
[320835850,1711609832544,-409.43,0.000512,30]
[320835851,1711609832555,-409.43,0.000512,30]
[320835852,1711609832565,-409.43,0.000512,30]
[320835853,1711609832576,-409.43,0.000512,30]
[320835854,1711609832587,-409.43,0.000512,30]
[320835855,1711609832598,-409.43,0.000512,30]
[320835856,1711609832607,-409.43,0.000512,30]
[320835857,1711609832616,-409.43,0.000512,30]
[320835858,1711609832626,-409.43,0.000512,30]
[320835859,1711609832637,-409.43,0.000512,30]
[320835860,1711609832647,-409.43,0.000512,30]
[320835861,1711609832658,-409.43,0.000512,30]
[320835862,1711609832668,-409.43,0.000512,30]
[320835863,1711609832678,-409.43,0.000512,30]
[320835864,1711609832689,-409.43,0.000512,30]
[320835865,1711609832699,-409.43,0.000512,30]
[320835866,1711609832709,-409.43,0.000512,30]
[320835867,1711609832719,-409.43,0.000512,30]
[320835868,1711609832730,-409.43,0.000512,30]
[320835869,1711609832740,-409.43,0.000512,30]
[320835870,1711609832751,-409.43,0.000512,30]
[320835871,1711609832760,-409.43,0.000512,30]
[320835872,1711609832772,-409.43,0.000512,30]
[320835873,1711609832781,-409.43,0.000512,30]
[320835874,1711609832792,-439.68,0.00051203,2]
[320835875,1711609832802,-161.44,0.00051278,30]
[320835876,1711609832813,-517.9,0.00051278,30]
[320835877,1711609832825,-150.0,0.00051278,30]
[320835878,1711609832834,-161.44,0.00051278,30]
[320835879,1711609832845,-150.0,0.00051278,30]
[320835880,1711609832856,-153.03,0.00051278,30]
[320835881,1711609832865,-161.44,0.00051278,30]
[320835882,1711609832876,-161.44,0.00051278,30]
[320835883,1711609832885,-150.0,0.00051278,30]
[320835884,1711609832894,-152.99,0.00051278,30]
[320835885,1711609832905,-161.44,0.00051278,30]
[320835886,1711609832916,-161.44,0.00051278,30]
[320835887,1711609832926,-161.44,0.00051278,30]
[320835888,1711609832937,-161.44,0.00051278,30]
[320835889,1711609832946,-277.83,0.00051346,2]
[320835890,1711609832959,-163.24010354,0.00051439,60]
[320835891,1711609832969,-158.63032544,0.00051483,60]
[320835892,1711609832979,-155.68021298,0.00051667,60]
[320835893,1711609832988,-163.24010354,0.00051839,60]
[320835894,1711609832999,-170.69831318,0.00051856,120]
[320835895,1711609833008,-210.0,0.0005186,30]
[320835896,1711609833019,-201.0,0.0005186,30]
[320835897,1711609833030,-157.49088873,0.00051875,60]
[320835898,1711609833041,-161.34245171,0.00051878,60]
[320835899,1711609833052,-155.47,0.00051942,120]
[320835900,1711609833066,-1092.32843578,0.0005199,2]
[320835901,1711609833076,-1000.0,0.00052055,30]
[320835902,1711609833087,-7503.17365606,0.00052078,2]
[320835903,1711609833098,-150.0,0.000521,30]
[320835904,1711609833107,-150.0,0.000521,30]
[320835905,1711609833117,-924.81,0.000521,30]
[320835906,1711609833128,-155.06,0.000521,30]
[320835907,1711609833138,-161.44,0.000521,30]
[320835908,1711609833149,-161.44,0.000521,30]
[320835909,1711609833159,-161.44,0.000521,30]
[320835910,1711609833168,-161.44,0.000521,30]
[320835911,1711609833179,-161.44,0.000521,30]
[320835912,1711609833189,-409.43,0.000521,30]
[320835913,1711609833198,-409.43,0.000521,30]
[320835914,1711609833209,-161.34245171,0.00052218,60]
[320835915,1711609833219,-2116.0,0.00052263,117]
[320835916,1711609833230,-166.33000666,0.00052272,60]
[320835917,1711609833239,-157.49088873,0.00052384,60]
[320835918,1711609833250,-157.032816,0.00052498,103]
[320835919,1711609833259,-689.34182428,0.000525,2]
[320835920,1711609833270,-157.49088873,0.00052503,60]
[320835921,1711609833279,-170.69831318,0.00052711,120]
[320835922,1711609833290,-150.0,0.00052778,30]
[320835923,1711609833301,-150.0,0.00052778,30]
[320835924,1711609833311,-150.0,0.00052778,30]
[320835925,1711609833320,-150.0,0.00052778,30]
[320835926,1711609833329,-169.47,0.0005279,2]
[320835927,1711609833339,-157.032816,0.00052798,105]
[320835928,1711609833350,-239.93114017,0.00052799,120]
[320835929,1711609833361,-500.0,0.00052799,120]
[320835930,1711609833372,-1402.82,0.00052799,120]
[320835931,1711609833381,-1169.2977,0.000528,2]
[320835932,1711609833392,-18608.48225004,0.000528,2]
[320835933,1711609833408,-806.4,0.000528,2]
[320835934,1711609833422,-2590.03411032,0.000528,2]
[320835951,1711609837691,-101621.84703964,0.000528,2]
[320835952,1711609837701,-155.68021298,0.00052821,60]
[320835953,1711609837711,-924.81,0.00052841,30]
[320835954,1711609837720,-409.43,0.00052841,30]
[320835955,1711609837730,-924.81,0.00052841,30]
[320835956,1711609837740,-409.43,0.00052841,30]
[320835957,1711609837749,-924.81,0.00052841,30]
[320835958,1711609837758,-924.81,0.00052841,30]
[320835959,1711609837768,-210.0,0.0005287,30]
[320835960,1711609837777,-215.0,0.0005287,30]
[320835961,1711609837787,-201.0,0.0005287,30]
[320835962,1711609837797,-200.15597255,0.00052878,24]
[320835963,1711609837807,-41594.7086412,0.000529,20]
[320835964,1711609837916,-878.19925826,0.000529,20]
[320835978,1711609841714,-611.67638925,0.000529,20]
[320835979,1711609841771,-105336.46074955,0.000529,20]
[320835980,1711609841780,-415.83,0.00052978,30]
[320835981,1711609841790,-525.81,0.00052978,30]
[320835982,1711609841801,-229.14,0.00052978,30]
[320835983,1711609841811,-354.17,0.00052978,30]
[320835984,1711609841821,-150.0,0.00052978,30]
[320835985,1711609841830,-415.83,0.00052978,30]
[320835987,1711609841839,-517.9,0.00052978,30]
[320835989,1711609841849,-150.0,0.00052978,30]
[320835991,1711609841860,-347.57,0.00052978,30]
[320835993,1711609841869,-415.83,0.00052978,30]
[320835995,1711609841878,-347.57,0.00052978,30]
[320835997,1711609841887,-1092.32843578,0.00052978,2]
[320835999,1711609841896,-4771.59,0.00052999,120]
[320836001,1711609841905,-4771.59,0.00052999,120]
[320836003,1711609841914,-5727.33665924,0.00053,120]
[320836005,1711609841923,-150.73,0.00053045,120]
[320836007,1711609841933,-7503.17365606,0.00053055,2]
[320836009,1711609841943,-150.0,0.00053178,30]
[320836011,1711609841953,-150.0,0.00053178,30]
[320836013,1711609841962,-150.0,0.00053178,30]
[320836015,1711609841971,-150.0,0.00053178,30]
[320836017,1711609841980,-150.0,0.00053178,30]
[320836032,1711609841990,-157.032816,0.00053198,106]
[320836036,1711609842129,-158.63032544,0.00053383,60]
[320836037,1711609842138,-5058.1251267,0.00053463,7]
[320836040,1711609842151,-96.8748733,0.00053463,7]
[320836042,1711609842160,-2564.28782287,0.00053478,64]
[320836044,1711609842169,-157.032816,0.00053498,107]
[320836046,1711609842179,-2002.0,0.000535,30]
[320836048,1711609842188,-2000.0,0.000535,30]
[320836050,1711609842197,-152.29738132,0.0005354,60]
[320836052,1711609842206,-170.69831318,0.00053565,120]
[320836054,1711609842215,-277.83,0.0005361,2]
[320836056,1711609842224,-1402.82,0.00053621,120]
[320836058,1711609842233,-306.74706047,0.00053692,2]
[320836060,1711609842242,-155.0,0.000537,30]
[320836062,1711609842251,-503.1836167,0.00053704,30]
[320836063,1711609842261,-4984.08838015,0.0005372,4]
[320836065,1711609842271,-6688.62558411,0.00053721,4]
[320836068,1711609842280,-202.28716753,0.00053721,4]
[320836070,1711609842289,-155.32528686,0.00053721,4]
[320836071,1711609842298,-155.48250085,0.00053722,4]
[320836074,1711609842307,-487.90467889,0.00053722,4]
[320836075,1711609842317,-199.49982209,0.00053722,4]
[320836077,1711609842326,-158.63032544,0.00053738,60]
[320836080,1711609842336,-150.73,0.00053782,120]
[320836082,1711609842345,-194.01374352,0.00053783,2]
[320836084,1711609842355,-150.73,0.00053783,120]
[320836086,1711609842365,-233.52292371,0.00053791,4]
[320836087,1711609842374,-47879.16958701,0.00053792,2]
[320836123,1711609842834,-21474.24425053,0.00053792,2]
[320836125,1711609842844,-155.0,0.00053792,4]
[320836127,1711609842853,-4486.05944401,0.00053793,2]
[320836129,1711609842868,-1817.88881692,0.00053793,2]
[320836131,1711609842892,-4791.91040467,0.00053793,2]
[320836132,1711609842908,-5016.51701328,0.00053793,2]
[320836144,1711609846253,-150.0,0.00053178,30]
[320836146,1711609846262,-428.97664646,0.00053462,2]
[320836149,1711609846287,-952.38111356,0.00053462,2]
[320836151,1711609846296,-44700.36888644,0.00053793,2]
[320836157,1711609846340,-300.0,0.000537,19]
[320836159,1711609846350,-1915.38535822,0.00053793,2]
[320836162,1711609846367,-20526.23687646,0.00053793,2]
[320836164,1711609846376,-150.0,0.000538,30]
[320836166,1711609846386,-150.0,0.000538,30]
[320836168,1711609846395,-150.0,0.000538,30]
[320836170,1711609846404,-210.0,0.0005388,30]
[320836172,1711609846413,-215.0,0.0005388,30]
[320836174,1711609846422,-216.0,0.0005388,30]
[320836176,1711609846431,-201.0,0.0005388,30]
[320836178,1711609846440,-169.47,0.00053903,2]
[320836180,1711609846449,-150.73,0.00053903,120]
[320836182,1711609846459,-1023.7391582,0.00053913,2]
[320836184,1711609846468,-379.2201128,0.00053913,2]
[320836186,1711609846478,-239.6272227,0.00053913,2]
[320836188,1711609846488,-17526.8141703,0.00053913,2]
[320836190,1711609846497,-990.703691,0.00053913,2]
[320836192,1711609846506,-154.9418671,0.00053913,2]
[320836194,1711609846515,-700.61547687,0.00053916,30]
[320836195,1711609846524,-1822.90360767,0.00053916,4]
[320836196,1711609846534,-156.11913482,0.00053916,4]
[320836197,1711609846543,-504.72675826,0.00053916,4]
[320836198,1711609846554,-781.01298102,0.00053916,2]
[320836199,1711609846564,-194.24799481,0.00053916,4]
[320836200,1711609846575,-346.60242245,0.00053916,4]
[320836201,1711609846585,-17140.77956363,0.00053917,7]
[320836202,1711609846595,-748.99645795,0.00053917,120]
[320836203,1711609846606,-2000.0,0.00053918,15]
[320836204,1711609846616,-200.0,0.00053918,15]
[320836205,1711609846625,-834.86824,0.00053918,68]
[320836206,1711609846636,-439.68,0.00053943,2]
[320836207,1711609846646,-4771.59,0.00053966,120]
[320836208,1711609846657,-1092.32843578,0.00053967,2]
[320836209,1711609846667,-200.0,0.00053987,2]
[320836210,1711609846678,-150.73,0.0005399,120]
[320836211,1711609846687,-171.30483148,0.00053997,2]
[320836212,1711609846697,-1000.0,0.00053999,120]
[320836213,1711609846707,-500.0,0.00053999,60]
[320836214,1711609846716,-461.63373841,0.00054,120]
[320836215,1711609846727,-600.0,0.00054,55]
[320836216,1711609846737,-2000.0,0.00054,120]
[320836217,1711609846747,-2000.0,0.00054,120]
[320836218,1711609846757,-169.17155032,0.00054,30]
[320836219,1711609846765,-500.0,0.00054,60]
[320836220,1711609846777,-1000.0,0.00054,120]
[320836221,1711609846786,-2000.0,0.00054,120]
[320836222,1711609846795,-2000.0,0.00054,120]
[320836223,1711609846805,-2000.0,0.00054,120]
[320836224,1711609846813,-2000.0,0.00054,120]
[320836225,1711609846822,-2000.0,0.00054,120]
[320836226,1711609846831,-1112.0,0.00054,4]
[320836227,1711609846841,-600.0,0.00054,54]
[320836228,1711609846850,-509.63119975,0.00054,120]
[320836229,1711609846859,-150.0,0.00054,30]
[320836230,1711609846870,-150.0,0.00054,30]
[320836231,1711609846879,-150.0,0.00054,30]
[320836232,1711609846888,-150.0,0.00054,30]
[320836233,1711609846898,-150.0,0.00054,30]
[320836234,1711609846907,-150.0,0.00054,30]
[320836235,1711609846915,-533.0,0.00054,120]
[320836236,1711609846925,-1345.022864,0.00054,120]
[320836237,1711609846933,-150.0,0.00054011,120]
[320836238,1711609846943,-7503.17365606,0.00054033,2]
[320836239,1711609846953,-2358.53700034,0.00054054,4]
[320836240,1711609846963,-1400.0,0.00054056,120]
[320836241,1711609846972,-150.0,0.00054056,30]
[320836242,1711609846980,-208.0,0.000541,30]
[320836243,1711609846990,-152.38,0.000541,33]
[320836244,1711609847001,-215.53,0.000541,120]
[320836245,1711609847010,-162.62454541,0.00054109,2]
[320836246,1711609847019,-2457.31765288,0.00054146,31]
[320836247,1711609847030,-169.00998009,0.00054146,2]
[320836248,1711609847040,-151.63330808,0.00054146,60]
[320836249,1711609847049,-292.88476359,0.00054146,31]
[320836250,1711609847058,-5000.0,0.00054146,3]
[320836251,1711609847068,-428.08293573,0.00054154,4]
[320836252,1711609847078,-1420.48903722,0.0005417,2]
[320836253,1711609847087,-167.9,0.00054192,120]
[320836254,1711609847096,-384.66666667,0.00054192,120]
[320836255,1711609847105,-151.032816,0.00054198,109]
[320836256,1711609847115,-150.73,0.00054199,120]
[320836257,1711609847124,-2850.77961691,0.000542,30]
[320836258,1711609847133,-268.469999,0.000542,120]
[320836259,1711609847142,-150.0,0.000542,11]
[320836260,1711609847151,-1258.7934928,0.000542,2]
[320836261,1711609847160,-259.85717978,0.00054207,4]
[320836262,1711609847169,-362.97600533,0.00054207,4]
[320836263,1711609847178,-595.87993291,0.00054208,90]
[320836264,1711609847188,-151.474168,0.00054209,120]
[320836265,1711609847197,-151.449003,0.00054209,120]
[320836266,1711609847207,-151.963109,0.00054209,120]
[320836267,1711609847216,-151.0,0.00054209,120]
[320836268,1711609847226,-151.0,0.00054209,120]
[320836269,1711609847236,-151.0,0.00054209,120]
[320836270,1711609847245,-151.0,0.00054209,120]
[320836271,1711609847255,-151.0,0.00054209,120]
[320836272,1711609847265,-151.0,0.00054209,120]
[320836273,1711609847274,-531.3216,0.00054209,60]
[320836274,1711609847283,-151.0,0.00054209,120]
[320836275,1711609847293,-531.3216,0.00054209,60]
[320836276,1711609847302,-1412.7919803,0.00054209,2]
[320836277,1711609847311,-1801.8448024,0.00054209,2]
[320836278,1711609847320,-523.3355878,0.00054209,2]
[320836279,1711609847330,-667.4510628,0.00054209,2]
[320836280,1711609847339,-151.0,0.00054209,120]
[320836281,1711609847348,-153.378094,0.00054209,120]
[320836282,1711609847358,-151.683422,0.00054209,120]
[320836283,1711609847369,-151.469716,0.00054209,120]
[320836284,1711609847378,-239.6272227,0.00054209,2]
[320836285,1711609847387,-239.6272227,0.00054209,2]
[320836286,1711609847397,-151.0,0.00054209,120]
[320836287,1711609847406,-456.535358,0.00054209,120]
[320836288,1711609847415,-456.535358,0.00054209,120]
[320836289,1711609847425,-151.0,0.00054209,120]
[320836290,1711609847434,-151.0,0.00054209,120]
[320836291,1711609847444,-151.388893,0.00054209,120]
[320836292,1711609847453,-151.0,0.00054209,120]
[320836293,1711609847574,-393.291056,0.00054209,120]
[320836294,1711609847583,-393.291056,0.00054209,120]
[320836295,1711609847592,-24187.5504135,0.00054209,2]
[320836296,1711609847601,-30848.2866568,0.00054209,2]
[320836297,1711609847610,-151.0,0.00054209,120]
[320836298,1711609847620,-155.644449,0.00054209,120]
[320836299,1711609847629,-151.0,0.00054209,7]
[320836300,1711609847638,-151.0,0.00054209,120]
[320836301,1711609847647,-151.404072,0.00054209,21]
[320836302,1711609847656,-151.465155,0.00054209,3]
[320836303,1711609847665,-151.533068,0.00054209,120]
[320836304,1711609847674,-151.0,0.00054209,120]
[320836305,1711609847683,-152.365264,0.00054209,120]
[320836306,1711609847693,-151.0,0.00054209,120]
[320836307,1711609847701,-151.0,0.00054209,120]
[320836308,1711609847710,-151.0,0.00054209,120]
[320836309,1711609847719,-151.0,0.00054209,120]
[320836310,1711609847729,-151.0,0.00054209,120]
[320836311,1711609847737,-1357.3823155,0.00054209,2]
[320836312,1711609847747,-1724.06094,0.00054209,2]
[320836313,1711609847757,-151.0,0.00054209,120]
[320836314,1711609847766,-152.274438,0.00054209,120]
[320836315,1711609847775,-151.0,0.00054209,120]
[320836316,1711609847784,-151.0,0.00054209,30]
[320836317,1711609847793,-151.549381,0.00054209,120]
[320836318,1711609847802,-152.720302,0.00054209,30]
[320836319,1711609847811,-953.188191,0.00054209,120]
[320836320,1711609847821,-953.188191,0.00054209,120]
[320836321,1711609847830,-152.428003,0.00054209,120]
[320836322,1711609847839,-210.7021013,0.00054209,2]
[320836323,1711609847848,-266.4623356,0.00054209,2]
[320836324,1711609847858,-151.0,0.00054209,120]
[320836325,1711609847868,-151.0,0.00054209,120]
[320836326,1711609847877,-151.0,0.00054209,120]
[320836327,1711609847887,-153.416299,0.00054209,120]
[320836328,1711609847897,-152.679113,0.00054209,60]
[320836329,1711609847906,-152.492505,0.00054209,120]
[320836330,1711609847915,-151.0,0.00054209,120]
[320836331,1711609847925,-151.0,0.00054209,120]
[320836332,1711609847934,-151.0,0.00054209,14]
[320836333,1711609847943,-151.0,0.00054209,120]
[320836334,1711609847953,-151.0,0.00054209,120]
[320836335,1711609847963,-150.73,0.00054235,120]
[320836336,1711609847972,-150.73,0.00054236,120]
[320836337,1711609847981,-300.63916013,0.00054244,4]
[320836338,1711609847991,-1060.98377059,0.00054245,4]
[320836339,1711609848001,-537.76,0.00054245,120]
[320836340,1711609848011,-1042.73597735,0.00054245,60]
[320836341,1711609848020,-1277.66622523,0.00054245,120]
[320836342,1711609848030,-829.02,0.00054245,120]
[320836343,1711609848039,-829.02,0.00054245,120]
[320836344,1711609848049,-829.02,0.00054245,120]
[320836345,1711609848058,-829.02,0.00054245,120]
[320836346,1711609848067,-829.02,0.00054245,120]
[320836347,1711609848078,-829.02,0.00054245,120]
[320836348,1711609848088,-4771.59,0.00054245,120]
[320836349,1711609848098,-4771.59,0.00054245,120]
[320836350,1711609848107,-4771.59,0.00054245,120]
[320836351,1711609848118,-4771.59,0.00054245,120]
[320836352,1711609848128,-4771.59,0.00054245,120]
[320836353,1711609848138,-623.3,0.00054246,30]
[320836354,1711609848148,-500.0,0.00054246,30]
[320836355,1711609848158,-337.90264459,0.00054246,120]
[320836356,1711609848168,-696.43,0.00054246,120]
[320836357,1711609848177,-502.81708348,0.00054246,120]
[320836358,1711609848187,-502.6287859,0.00054246,120]
[320836359,1711609848197,-500.0,0.00054246,120]
[320836360,1711609848207,-294.45858966,0.00054246,120]
[320836361,1711609848217,-503.36679063,0.00054246,120]
[320836362,1711609848226,-500.61440784,0.00054246,120]
[320836363,1711609848236,-501.78539962,0.00054246,120]
[320836364,1711609848247,-502.3884426,0.00054246,120]
[320836365,1711609848256,-502.66952816,0.00054246,120]
[320836366,1711609848266,-502.00841153,0.00054246,120]
[320836367,1711609848275,-502.44291324,0.00054246,120]
[320836368,1711609848285,-500.0,0.00054246,120]
[320836369,1711609848295,-500.0,0.00054246,120]
[320836370,1711609848306,-508.01071993,0.00054246,120]
[320836371,1711609848315,-500.0,0.00054246,120]
[320836372,1711609848324,-503.52710474,0.00054246,120]
[320836373,1711609848333,-500.0,0.00054246,120]
[320836374,1711609848342,-505.87192917,0.00054246,120]
[320836375,1711609848352,-504.48447864,0.00054246,120]
[320836376,1711609848362,-298.87299923,0.00054246,120]
[320836377,1711609848373,-621.85949724,0.00054246,120]
[320836378,1711609848382,-503.3755507,0.00054246,120]
[320836379,1711609848392,-183.40115617,0.00054246,120]
[320836380,1711609848402,-507.60398605,0.00054246,120]
[320836381,1711609848411,-503.18684153,0.00054246,120]
[320836382,1711609848421,-503.26699845,0.00054246,120]
[320836383,1711609848431,-507.09266203,0.00054246,120]
[320836384,1711609848440,-504.08512078,0.00054246,120]
[320836385,1711609848451,-501.35575469,0.00054246,120]
[320836386,1711609848460,-502.91713455,0.00054246,120]
[320836387,1711609848470,-501.33543139,0.00054246,120]
[320836388,1711609848480,-603.16884296,0.00054246,120]
[320836389,1711609848494,-505.33036925,0.00054246,120]
[320836390,1711609848504,-502.50347762,0.00054246,120]
[320836391,1711609848513,-500.0,0.00054246,120]
[320836392,1711609848522,-500.0,0.00054246,120]
[320836393,1711609848531,-500.0,0.00054246,120]
[320836394,1711609848540,-319.40325791,0.00054246,2]
[320836395,1711609848550,-200.62461209,0.00054246,21]
[320836396,1711609848558,-502.38426531,0.00054246,120]
[320836397,1711609848568,-502.1970469,0.00054246,60]
[320836398,1711609848577,-503.15364317,0.00054246,120]
[320836399,1711609848586,-634.37478752,0.00054246,120]
[320836400,1711609848595,-500.0,0.00054246,120]
[320836401,1711609848604,-503.96297337,0.00054246,120]
[320836402,1711609848613,-504.15614384,0.00054246,120]
[320836403,1711609848624,-505.12959713,0.00054246,120]
[320836404,1711609848633,-501.44481501,0.00054246,120]
[320836405,1711609848643,-502.9509233,0.00054246,120]
[320836406,1711609848652,-504.51587485,0.00054246,120]
[320836407,1711609848661,-504.75302739,0.00054246,120]
[320836408,1711609848670,-502.17158652,0.00054246,120]
[320836409,1711609848679,-500.0,0.00054246,120]
[320836410,1711609848688,-505.73324205,0.00054246,120]
[320836411,1711609848697,-501.30441191,0.00054246,120]
[320836412,1711609848705,-456.61032398,0.00054246,120]
[320836413,1711609848714,-500.0,0.00054246,120]
[320836414,1711609848723,-500.0,0.00054246,120]
[320836415,1711609848732,-500.0,0.00054246,120]
[320836416,1711609848741,-502.6417538,0.00054246,120]
[320836417,1711609848750,-502.52236805,0.00054246,120]
[320836418,1711609848759,-500.0,0.00054246,120]
[320836419,1711609848768,-505.66849517,0.00054246,120]
[320836420,1711609848777,-503.94340592,0.00054246,120]
[320836421,1711609848786,-500.0,0.00054246,120]
[320836422,1711609848795,-503.12066887,0.00054246,120]
[320836423,1711609848804,-502.22093104,0.00054246,120]
[320836424,1711609848813,-500.0,0.00054246,120]
[320836425,1711609848821,-503.57137973,0.00054246,120]
[320836426,1711609848830,-500.0,0.00054246,120]
[320836427,1711609848839,-513.46622408,0.00054246,120]
[320836428,1711609848849,-500.0,0.00054246,120]
[320836429,1711609848858,-504.10628824,0.00054246,120]
[320836430,1711609848867,-503.06703947,0.00054246,120]
[320836431,1711609848876,-502.41015896,0.00054246,120]
[320836432,1711609848885,-504.4787654,0.00054246,120]
[320836433,1711609848895,-503.49917304,0.00054246,120]
[320836434,1711609848905,-507.04326378,0.00054246,120]
[320836435,1711609848913,-180.79400916,0.00054246,120]
[320836436,1711609848922,-522.33468165,0.00054246,120]
[320836437,1711609848932,-504.96903325,0.00054246,120]
[320836438,1711609848942,-510.9718595,0.00054246,120]
[320836439,1711609848952,-500.0,0.00054246,120]
[320836440,1711609848963,-502.26629205,0.00054246,120]
[320836441,1711609848972,-504.59642627,0.00054246,120]
[320836442,1711609848981,-504.15811803,0.00054246,120]
[320836443,1711609848990,-500.0,0.00054246,120]
[320836444,1711609849001,-503.39328806,0.00054246,120]
[320836445,1711609849010,-507.02741871,0.00054246,120]
[320836446,1711609849020,-450.22508634,0.00054246,120]
[320836447,1711609849029,-500.0,0.00054246,120]
[320836448,1711609849039,-505.74336,0.00054246,120]
[320836449,1711609849048,-582.78297661,0.00054246,120]
[320836450,1711609849058,-499.99647288,0.00054246,120]
[320836451,1711609849067,-505.90704666,0.00054246,120]
[320836452,1711609849077,-500.0,0.00054246,120]
[320836453,1711609849086,-500.0,0.00054246,120]
[320836454,1711609849095,-500.0,0.00054246,120]
[320836455,1711609849105,-500.95382047,0.00054246,120]
[320836456,1711609849213,-500.0,0.00054246,120]
[320836457,1711609849222,-501.43186335,0.00054246,120]
[320836458,1711609849232,-501.30092499,0.00054246,120]
[320836459,1711609849242,-500.0,0.00054246,120]
[320836460,1711609849251,-501.67971599,0.00054246,120]
[320836461,1711609849260,-500.0,0.00054246,120]
[320836462,1711609849270,-501.5216286,0.00054246,120]
[320836463,1711609849279,-500.0,0.00054246,120]
[320836464,1711609849289,-500.0,0.00054246,120]
[320836465,1711609849299,-500.0,0.00054246,120]
[320836466,1711609849308,-500.0,0.00054246,120]
[320836467,1711609849318,-500.0,0.00054246,120]
[320836468,1711609849327,-500.0,0.00054246,120]
[320836469,1711609849336,-511.25614937,0.00054246,120]
[320836470,1711609849346,-507.55363141,0.00054246,120]
[320836471,1711609849355,-152.216291,0.00054246,120]
[320836472,1711609849364,-500.0,0.00054246,120]
[320836473,1711609849375,-500.0,0.00054246,120]
[320836474,1711609849384,-500.0,0.00054246,120]
[320836475,1711609849393,-641.48564663,0.00054246,120]
[320836476,1711609849402,-500.0,0.00054246,30]
[320836477,1711609849411,-500.0,0.00054246,120]